bitfinex-derivatives/quotes_ETHF0:USTF0_20250701
["timestamp","ask_amount","ask_price","bid_price","bid_amount"]
[1751330521406,0.80361,2488.2,2488.1,2.39359]
[1751330521808,0.80358,2488.3,2488.2,0.80356]
[1751330522004,25.57058,2488.3,2488.2,0.80356]
[1751330522203,3.99885285,2488.4,2488.3,0.80356]
[1751330522403,24.766,2488.4,2488.2,4.01138]
[1751330522604,0.80356,2488.3,2488.2,4.01138]
[1751330522797,0.80356,2488.3,2488.2,6.08138]
[1751330523005,0.80356,2488.3,2488.2,4.01138]
[1751330523206,0.80356,2488.3,2488.2,5.98138]
[1751330523409,25.56956,2488.3,2488.2,5.98138]
[1751330523608,24.766,2488.3,2488.2,5.98138]
[1751330523908,61.11830285,2488.6,2488.2,5.4578]
[1751330524207,24.765,2488.5,2488.4,0.80352]
[1751330524400,25.56746,2488.6,2488.5,0.80349]
[1751330524601,24.764,2488.6,2488.5,2.82349]
[1751330524809,0.80345,2488.7,2488.6,0.80346]
[1751330525006,3.99872285,2488.8,2488.7,0.80343]
[1751330525201,3.99868285,2488.9,2488.8,0.80339]
[1751330525403,25.56538,2488.9,2488.8,2.94339]
[1751330525703,3.19530285,2489.0,2488.9,0.80336]
[1751330525908,27.95730285,2489.0,2488.9,2.75336]
[1751330526305,24.762,2489.0,2488.9,2.75336]
[1751330526505,0.80333,2489.0,2488.9,2.75336]
[1751330526707,25.56533,2489.0,2488.9,2.75336]
[1751330526909,25.56533,2489.0,2488.9,4.08746]
[1751330527712,25.56333,2489.0,2488.9,4.51746]
[1751330528109,28.75863285,2489.0,2488.9,1.3341]
[1751330528315,0.80336,2488.9,2488.8,3.2078]
[1751330528517,3.07930335,2488.9,2488.8,5.5478]
[1751330529410,28.75866285,2489.0,2488.8,3.2078]
[1751330529611,3.19530285,2489.1,2489.0,0.80333]
[1751330529905,24.757,2489.1,2488.9,0.9061]
[1751330530214,24.757,2489.1,2488.9,3.72946]
[1751330530215,0.80333,2489.0,2488.9,3.72946]
[1751330530412,0.80333,2489.0,2488.9,1.70946]
[1751330530911,0.80333,2489.0,2488.9,0.9061]
[1751330531113,0.80333,2489.0,2488.9,3.2961]
[1751330531612,0.80333,2489.0,2488.9,2.8961]
[1751330531812,0.80333,2489.0,2488.9,0.9061]
[1751330532318,0.80333,2489.0,2488.9,3.2061]
[1751330532510,0.80333,2489.0,2488.9,0.9061]
[1751330532709,0.80336,2488.9,2488.8,3.2078]
[1751330533016,0.80343,2488.7,2488.6,0.9919]
[1751330533216,27.83037335,2488.7,2488.6,0.9919]
[1751330533919,27.83037335,2488.7,2488.6,3.2919]
[1751330534113,27.83037335,2488.7,2488.6,3.3519]
[1751330534313,27.83037335,2488.7,2488.6,0.9919]
[1751330534611,0.80346,2488.6,2488.5,3.2078]
[1751330534812,0.80346,2488.6,2488.5,3.2178]
[1751330536217,0.9671,2489.0,2488.5,5.49374335]
[1751330536420,25.54937,2488.9,2488.8,0.80339]
[1751330536618,24.746,2488.9,2488.8,4.01379]
[1751330537219,25.54936,2488.9,2488.8,4.01379]
[1751330537521,25.54936,2488.9,2488.8,6.4182]
[1751330537820,25.54936,2488.9,2488.8,7.22159]
[1751330538615,0.80334,2489.1,2489.0,0.80331]
[1751330538920,0.80325,2489.3,2489.2,0.80324]
[1751330539113,25.54725,2489.3,2489.2,0.80324]
[1751330539314,25.54625,2489.3,2489.2,0.80324]
[1751330539712,24.743,2489.3,2489.2,2.39327]
[1751330539917,0.80321,2489.4,2489.3,0.80323]
[1751330540220,17.9517462,2489.6,2489.4,0.80317]
[1751330540221,0.80319,2489.5,2489.4,0.80317]
[1751330540517,25.54419,2489.5,2489.4,3.11317]
[1751330541521,0.80305,2489.9,2489.8,0.80307]
[1751330541716,0.80303,2490.0,2489.9,0.80302]
[1751330541914,0.80304,2489.9,2489.8,4.01085]
[1751330542112,0.80304,2489.9,2489.8,0.80305]
[1751330542422,0.80304,2489.9,2489.8,4.01085]
[1751330542624,25.54303,2490.0,2489.9,0.80304]
[1751330542825,25.54303,2490.0,2489.9,3.00304]
[1751330543018,25.54303,2490.0,2489.9,2.2]
[1751330543321,0.80304,2489.9,2489.8,3.2078]
[1751330543724,25.54303,2490.0,2489.8,3.2078]
[1751330543926,0.80304,2489.9,2489.8,3.2078]
[1751330544521,0.80304,2489.9,2489.8,4.01087]
[1751330544718,24.74,2490.0,2489.8,5.96087]
[1751330544918,24.74,2490.0,2489.8,4.01087]
[1751330545118,0.80304,2489.9,2489.8,6.36087]
[1751330545325,25.54302,2490.0,2489.9,0.80304]
[1751330545823,25.54302,2490.0,2489.9,2.31]
[1751330546519,25.54302,2490.0,2489.9,3.11304]
[1751330547123,25.54302,2490.0,2489.9,3.07304]
[1751330547323,25.54302,2490.0,2489.9,0.80304]
[1751330547726,24.74,2490.0,2489.9,0.80304]
[1751330547920,17.09124335,2490.3,2489.9,0.80304]
[1751330548125,0.80299,2490.1,2490.0,0.80299]
[1751330548421,0.80301,2490.0,2489.9,0.80302]
[1751330548621,0.80301,2490.0,2489.9,3.18302]
[1751330549420,0.80301,2490.0,2489.9,2.38]
[1751330551620,0.80304,2489.9,2489.8,5.00957]
[1751330551820,25.52804,2489.9,2489.8,10.09957]
[1751330552221,4.28332335,2490.2,2489.8,9.2965]
[1751330552529,0.80304,2489.9,2489.8,10.09955]
[1751330553022,0.80299,2490.1,2490.0,0.80297]
[1751330553223,25.52499,2490.1,2490.0,4.10594335]
[1751330553430,25.52499,2490.1,2490.0,1.83]
[1751330553622,0.80299,2490.1,2490.0,1.83]
[1751330553824,0.80301,2490.0,2489.9,1.395]
[1751330554119,0.80301,2490.0,2489.9,1.73]
[1751330554325,0.80304,2489.9,2489.8,4.2065]
[1751330557429,0.80304,2489.9,2489.8,6.1465]
[1751330557630,0.80304,2489.9,2489.8,6.2865]
[1751330558327,0.80304,2489.9,2489.8,4.2065]
[1751330558726,0.8031,2489.7,2489.6,0.9728]
[1751330558931,0.8031,2489.7,2489.6,3.8219]
[1751330559627,0.8031,2489.7,2489.6,5.151]
[1751330560128,24.716,2489.8,2489.6,8.23008335]
[1751330560332,25.51907,2489.8,2489.7,1.3291]
[1751330560531,25.51907,2489.8,2489.7,4.8791]
[1751330561232,0.8031,2489.7,2489.6,0.9519]
[1751330561441,0.80314,2489.6,2489.5,3.2078]
[1751330561732,3.07908335,2489.6,2489.5,3.2078]
[1751330562430,0.80314,2489.6,2489.5,3.2078]
[1751330563028,0.80314,2489.6,2489.5,5.3778]
[1751330563228,0.80314,2489.6,2489.5,4.9978]
[1751330565636,0.80314,2489.6,2489.5,5.80097]
[1751330565839,0.80313,2489.7,2489.6,0.8031]
[1751330566040,0.80313,2489.7,2489.6,9.2293]
[1751330566228,0.80313,2489.7,2489.6,10.2141]
[1751330567340,3.19530285,2490.0,2489.6,9.411]
[1751330567533,28.70833285,2490.0,2489.9,3.07898335]
[1751330567733,25.51303,2490.0,2489.9,6.58898335]
[1751330567933,3.99830285,2490.1,2490.0,0.80301]
[1751330568128,0.803,2490.1,2490.0,5.95271]
[1751330568434,25.51196,2490.2,2490.1,0.80298]
[1751330568636,25.51196,2490.2,2490.1,6.22268]
[1751330569125,0.80298,2490.1,2490.0,0.9385]
[1751330569341,0.80298,2490.1,2490.0,2.8385]
[1751330569632,0.80298,2490.1,2490.0,2.2782]
[1751330570037,0.80298,2490.1,2490.0,4.2982]
[1751330570233,0.80298,2490.1,2490.0,3.08121]
[1751330570633,0.80298,2490.1,2490.0,5.17121]
[1751330571034,0.80298,2490.1,2490.0,3.08121]
[1751330571235,0.80298,2490.1,2490.0,4.98121]
[1751330572735,0.80298,2490.1,2490.0,4.1782]
[1751330572934,0.80298,2490.1,2490.0,0.9385]
[1751330573240,0.80298,2490.1,2490.0,1.74151]
[1751330573735,0.80298,2490.1,2490.0,0.9385]
[1751330573934,0.80298,2490.1,2490.0,1.74151]
[1751330575938,0.80298,2490.1,2490.0,0.9385]
[1751330576541,0.80298,2490.1,2490.0,1.74151]
[1751330576738,0.80298,2490.1,2490.0,0.9385]
[1751330576937,0.80298,2490.1,2490.0,1.74151]
[1751330577536,0.80298,2490.1,2490.0,3.77151]
[1751330578441,0.80298,2490.1,2490.0,1.74151]
[1751330580143,0.80298,2490.1,2490.0,0.9385]
[1751330580438,0.8031,2489.7,2489.6,3.2078]
[1751330580642,27.77804335,2489.7,2489.6,3.2078]
[1751330581233,29.13734335,2489.7,2489.6,3.2078]
[1751330582044,27.77804335,2489.7,2489.6,3.2078]
[1751330582346,25.5021,2489.7,2489.6,3.2078]
[1751330582843,27.77804335,2489.7,2489.6,3.2078]
[1751330583542,29.17464335,2489.7,2489.6,3.2078]
[1751330585145,25.5021,2489.7,2489.6,3.2078]
[1751330586442,25.5021,2489.7,2489.6,5.3778]
[1751330586646,25.5021,2489.7,2489.6,3.2078]
[1751330587248,25.5021,2489.7,2489.6,5.4878]
[1751330587646,25.5021,2489.7,2489.6,3.2078]
[1751330588649,25.5021,2489.7,2489.6,5.2678]
[1751330588839,25.5021,2489.7,2489.6,3.2078]
[1751330589038,2.00763,2489.9,2489.6,1.77]
[1751330589247,0.80314,2489.7,2489.6,5.78091]
[1751330589449,0.8031,2489.8,2489.7,0.80306]
[1751330589749,25.49607,2489.9,2489.8,0.80306]
[1751330589944,25.49607,2489.9,2489.8,2.49306]
[1751330590443,0.80303,2490.0,2489.9,0.80299]
[1751330590644,25.495,2490.1,2490.0,0.80298]
[1751330590844,25.495,2490.1,2490.0,4.15]
[1751330591056,0.80301,2490.0,2489.9,3.2078]
[1751330591352,0.80301,2490.0,2489.9,8.08084]
[1751330591852,0.80301,2490.0,2489.9,7.2778]
[1751330592052,25.49501,2490.1,2490.0,0.80301]
[1751330592246,25.49501,2490.1,2490.0,2.53301]
[1751330594140,0.80301,2490.1,2490.0,2.53301]
[1751330594341,0.80301,2490.1,2490.0,0.80301]
[1751330594549,0.80301,2490.1,2490.0,2.38301]
[1751330595352,25.49096,2490.2,2490.1,0.80298]
[1751330595554,25.49096,2490.2,2490.1,2.86298]
[1751330595946,24.688,2490.2,2490.1,2.86298]
[1751330596246,3.19530285,2490.6,2490.2,0.80294]
[1751330596447,0.80285,2490.5,2490.4,3.2078]
[1751330597953,0.80285,2490.5,2490.4,5.4678]
[1751330598153,0.80285,2490.5,2490.4,3.06288]
[1751330598349,0.80285,2490.5,2490.4,0.80288]
[1751330598549,0.80289,2490.4,2490.3,0.80288]
[1751330598854,4.00819572,2490.4,2490.3,2.76288]
[1751330599251,0.80291,2490.3,2490.2,0.80292]
[1751330599450,0.80291,2490.3,2490.2,2.44292]
[1751330599652,4.00819572,2490.4,2490.3,0.80291]
[1751330599848,4.00819572,2490.4,2490.3,2.65291]
[1751330600247,0.80289,2490.4,2490.3,2.65291]
[1751330600447,0.80289,2490.4,2490.3,3.99011]
[1751330600654,4.00817572,2490.5,2490.4,0.80288]
[1751330600853,4.00817572,2490.5,2490.4,5.64068]
[1751330601653,0.80287,2490.5,2490.4,5.64068]
[1751330602455,0.80287,2490.5,2490.4,3.2078]
[1751330602656,3.07881335,2490.5,2490.4,3.2078]
[1751330603051,0.80291,2490.3,2490.2,0.80292]
[1751330603253,0.80291,2490.3,2490.2,0.81292]
[1751330603558,0.80291,2490.3,2490.2,0.80292]
[1751330604154,0.80294,2490.2,2490.1,3.2078]
[1751330604353,0.80294,2490.2,2490.1,3.2578]
[1751330605051,4.28308335,2490.5,2490.1,3.2578]
[1751330605257,0.80289,2490.4,2490.3,0.80288]
[1751330605651,0.80289,2490.4,2490.3,2.1]
[1751330605856,0.80289,2490.4,2490.3,2.90291]
[1751330607656,0.80291,2490.3,2490.2,0.80292]
[1751330607856,0.80291,2490.3,2490.2,2.84292]
[1751330609059,0.80291,2490.3,2490.2,3.77302]
[1751330609360,0.80291,2490.3,2490.2,2.9701]
[1751330610358,0.80291,2490.3,2490.2,3.77304]
[1751330610858,0.80291,2490.3,2490.2,1.73304]
[1751330611359,0.80291,2490.3,2490.2,0.9401]
[1751330611559,0.80291,2490.3,2490.2,1.74304]
[1751330611958,0.80291,2490.3,2490.2,1.73304]
[1751330612259,0.80304,2489.9,2489.8,3.2078]
[1751330612562,0.80304,2489.9,2489.8,9.42457426]
[1751330612759,0.80304,2490.0,2489.9,0.80303]
[1751330613062,0.80304,2490.0,2489.9,3.71493426]
[1751330613262,0.80304,2490.0,2489.9,5.14363426]
[1751330614558,0.80304,2490.0,2489.9,4.34060426]
[1751330614752,0.80304,2490.0,2489.9,3.1287]
[1751330614963,0.80304,2490.0,2489.9,3.93174]
[1751330615464,0.80304,2490.0,2489.9,1.7]
[1751330616259,1.80404,2490.0,2489.9,1.7]
[1751330616664,0.80304,2489.9,2489.8,4.1396]
[1751330616864,0.80304,2489.9,2489.8,3.2078]
[1751330617864,0.80314,2489.6,2489.5,3.2078]
[1751330618064,0.80314,2489.6,2489.5,8.75320028]
[1751330618765,0.80314,2489.6,2489.5,9.55637028]
[1751330620064,0.80313,2489.7,2489.6,0.80312]
[1751330620262,0.80313,2489.7,2489.6,7.95672028]
[1751330621663,0.80313,2489.7,2489.6,7.15360028]
[1751330623068,0.80313,2489.7,2489.6,5.94]
[1751330626768,0.80313,2489.7,2489.6,6.74314]
[1751330627173,0.80313,2489.7,2489.6,8.10144]
[1751330628178,0.80313,2489.7,2489.6,7.2983]
[1751330628473,0.80313,2489.7,2489.6,8.10144]
[1751330628674,0.80313,2489.7,2489.6,7.2983]
[1751330631479,0.8031,2489.7,2489.6,10.37735335]
[1751330631678,1.9429,2490.3,2489.6,11.58209335]
[1751330631980,2.00715,2490.5,2490.1,2.27594335]
[1751330632180,2.00715,2490.5,2490.2,0.9462]
[1751330632181,0.80291,2490.3,2490.2,0.9462]
[1751330632381,0.80291,2490.3,2490.2,5.0762]
[1751330633480,0.80291,2490.3,2490.2,0.9462]
[1751330633683,0.80298,2490.1,2490.0,3.2078]
[1751330633887,3.07892335,2490.1,2490.0,3.2078]
[1751330634390,2.00756,2490.0,2489.7,3.2078]
[1751330634586,3.07901335,2489.8,2489.7,3.2078]
[1751330635490,3.99741335,2489.8,2489.7,3.2078]
[1751330636893,3.07901335,2489.8,2489.7,3.2078]
[1751330639992,0.80317,2489.5,2489.4,1.8928]
[1751330640188,0.80317,2489.5,2489.4,6.32722491]
[1751330641681,2.27594335,2489.8,2489.4,6.32722491]
[1751330641887,0.80317,2489.5,2489.4,5.1106]
[1751330642082,0.80317,2489.5,2489.4,6.32811021]
[1751330642799,0.80317,2489.5,2489.4,4.17]
[1751330642997,0.80327,2489.2,2489.1,3.2078]
[1751330643187,3.07921335,2489.2,2489.1,4.85637303]
[1751330644087,3.07921335,2489.2,2489.1,3.6378]
[1751330644591,0.80327,2489.2,2489.1,3.6378]
[1751330645597,0.80327,2489.2,2489.1,4.4411]
[1751330646189,0.80327,2489.2,2489.1,3.6378]
[1751330646995,0.80327,2489.2,2489.1,4.4411]
[1751330647392,1.0142,2489.6,2489.1,3.6378]
[1751330647598,0.80318,2489.5,2489.4,0.80318]
[1751330647898,0.80318,2489.5,2489.4,6.21208]
[1751330648302,0.80316,2489.6,2489.5,0.80316]
[1751330648495,0.80316,2489.6,2489.5,2.44316]
[1751330648897,0.80317,2489.5,2489.4,5.92988]
[1751330649096,0.80317,2489.5,2489.4,9.71988]
[1751330650097,0.80317,2489.5,2489.4,8.9167]
[1751330650494,0.80317,2489.5,2489.4,9.7199]
[1751330652595,0.80316,2489.6,2489.5,0.80315]
[1751330652798,0.80317,2489.5,2489.4,5.92989]
[1751330653098,0.80317,2489.5,2489.4,9.65989]
[1751330653296,2.0077,2489.8,2489.4,8.8567]
[1751330653499,0.80316,2489.6,2489.5,0.80313]
[1751330655699,0.80314,2489.7,2489.6,0.8031]
[1751330656100,2.00746,2490.1,2489.8,0.80305]
[1751330656301,4.00831572,2490.0,2489.9,0.982]
[1751330657300,4.00831572,2490.0,2489.9,1.78504]
[1751330658005,4.00831572,2490.0,2489.9,0.982]
[1751330659300,4.00831572,2490.0,2489.9,1.78504]
[1751330659806,4.00831572,2490.0,2489.9,0.982]
[1751330660009,4.00831572,2490.0,2489.9,1.78504]
[1751330660700,4.00831572,2490.0,2489.9,0.982]
[1751330661303,4.00831572,2490.0,2489.9,1.78504]
[1751330661699,0.803,2490.1,2490.0,0.80298]
[1751330661899,0.803,2490.1,2490.0,3.35448]
[1751330662200,0.803,2490.1,2490.0,4.77478]
[1751330663396,4.00827572,2490.2,2490.1,0.80298]
[1751330663602,4.00827572,2490.2,2490.1,4.60298]
[1751330663794,0.80297,2490.2,2490.1,2.18828]
[1751330664301,4.00827572,2490.2,2490.1,4.11828]
[1751330664505,4.00827572,2490.2,2490.1,2.18828]
[1751330664697,0.80297,2490.2,2490.1,2.18828]
[1751330667408,0.80297,2490.2,2490.1,1.3853]
[1751330667706,0.80298,2490.1,2490.0,4.9323]
[1751330667908,3.07892335,2490.1,2490.0,4.9323]
[1751330668308,3.07892335,2490.1,2490.0,4.1293]
[1751330674016,3.07892335,2490.1,2490.0,4.93231]
[1751330675015,3.07892335,2490.1,2490.0,4.1293]
[1751330677513,3.07892335,2490.1,2490.0,4.93231]
[1751330677717,3.07892335,2490.1,2490.0,4.1293]
[1751330678216,0.80298,2490.1,2490.0,4.93231]
[1751330678416,0.80298,2490.1,2490.0,4.1293]
[1751330678613,0.80301,2490.0,2489.9,0.982]
[1751330678813,3.07895335,2490.0,2489.9,0.982]
[1751330679919,0.80301,2490.1,2490.0,0.80299]
[1751330680116,0.80301,2490.1,2490.0,5.34169]
[1751330680316,0.80301,2490.1,2490.0,5.36169]
[1751330681718,3.07895335,2490.1,2490.0,4.5587]
[1751330681916,3.07895335,2490.1,2490.0,3.2278]
[1751330682919,3.07895335,2490.1,2490.0,3.2078]
[1751330683711,4.28343335,2490.1,2489.7,3.2078]
[1751330683915,3.07901335,2489.8,2489.7,4.6976]
[1751330685621,3.07901335,2489.8,2489.7,5.5007]
[1751330685815,0.80307,2489.8,2489.7,5.5007]
[1751330686022,0.80307,2489.9,2489.8,0.80306]
[1751330686220,0.80307,2489.9,2489.8,2.97306]
[1751330687419,0.80307,2489.9,2489.8,2.17]
[1751330692526,0.80307,2489.9,2489.8,2.97307]
[1751330694029,0.80307,2489.9,2489.8,2.17]
[1751330695432,0.80307,2489.9,2489.8,2.97307]
[1751330695729,0.80307,2489.9,2489.8,2.17]
[1751330695928,0.80307,2489.9,2489.8,5.3778]
[1751330697424,0.80307,2489.9,2489.8,6.7364]
[1751330698420,0.80307,2489.9,2489.8,7.53947]
[1751330700529,0.80307,2489.9,2489.8,6.7364]
[1751330700832,0.80307,2489.9,2489.8,5.3778]
[1751330703837,0.80307,2489.9,2489.8,6.18087]
[1751330705434,0.80307,2489.9,2489.8,5.3778]
[1751330705741,0.80303,2490.0,2489.9,0.803]
[1751330706036,0.80303,2490.0,2489.9,4.1576]
[1751330707632,3.07897335,2490.0,2489.9,2.01]
[1751330708134,0.80304,2489.9,2489.8,4.01084]
[1751330709338,0.80304,2489.9,2489.8,5.92084]
[1751330709539,0.80304,2489.9,2489.8,7.27524]
[1751330709936,0.80304,2489.9,2489.8,4.5622]
[1751330710137,0.80304,2489.9,2489.8,3.2078]
[1751330710639,1.76184,2489.9,2489.8,3.2878]
[1751330710841,2.72104,2489.9,2489.8,3.2878]
[1751330711139,2.72104,2489.9,2489.8,3.2078]
[1751330711140,0.80304,2489.9,2489.8,3.2078]
[1751330711344,0.80304,2489.9,2489.8,5.64087]
[1751330712844,0.80304,2489.9,2489.8,2.43307]
[1751330713143,0.80304,2489.9,2489.8,5.64087]
[1751330713939,0.80304,2489.9,2489.8,2.43307]
[1751330714148,0.80304,2489.9,2489.8,5.64087]
[1751330715447,3.07897335,2490.0,2489.9,0.80304]
[1751330715650,0.80299,2490.1,2490.0,0.80301]
[1751330715942,3.07888335,2490.2,2490.1,0.9187]
[1751330716142,3.07888335,2490.2,2490.1,1.72168]
[1751330716741,0.80294,2490.2,2490.1,3.53168]
[1751330716941,0.80294,2490.2,2490.1,1.72168]
[1751330717241,3.07888335,2490.2,2490.1,1.72168]
[1751330717443,3.07888335,2490.2,2490.1,0.9187]
[1751330717949,3.07888335,2490.2,2490.1,1.72168]
[1751330718549,3.07888335,2490.2,2490.1,4.92948]
[1751330721249,2.27594335,2490.2,2490.1,6.57948]
[1751330721449,3.07888335,2490.2,2490.1,7.52698]
[1751330721848,30.07724907,2490.4,2490.3,0.80291]
[1751330722048,5.48124907,2490.4,2490.3,2.73291]
[1751330722246,3.07884335,2490.4,2490.3,2.73291]
[1751330722446,3.07884335,2490.4,2490.3,0.80291]
[1751330723153,7.42783,2490.7,2490.3,0.80291]
[1751330723154,3.99413116,2490.9,2490.8,0.80275]
[1751330723353,3.99413116,2491.0,2490.9,0.80272]
[1751330723555,0.80264,2491.2,2491.1,0.80265]
[1751330723856,3.07855335,2491.3,2491.2,0.80262]
[1751330724246,27.67155335,2491.3,2491.2,0.80262]
[1751330724447,2.27594335,2491.3,2491.2,0.80262]
[1751330724646,25.39556,2491.4,2491.3,0.80259]
[1751330724851,26.86894335,2491.4,2490.9,5.22389]
[1751330725047,0.8026,2491.3,2491.2,0.80259]
[1751330725256,27.67152335,2491.4,2491.3,0.80259]
[1751330725854,0.8026,2491.3,2491.2,0.80259]
[1751330726050,27.67151335,2491.4,2491.3,0.80259]
[1751330726249,27.66651335,2491.4,2491.3,1.55]
[1751330726450,27.66651335,2491.4,2491.3,2.5081]
[1751330726654,27.66651335,2491.4,2491.3,0.9581]
[1751330726954,3.07851335,2491.4,2491.3,0.9581]
[1751330727957,27.66551335,2491.4,2491.3,0.9581]
[1751330728254,0.80257,2491.4,2491.3,3.36069]
[1751330728458,0.80257,2491.4,2491.3,3.9813]
[1751330728959,0.9827,2491.9,2491.6,0.80248]
[1751330729252,25.38643,2491.8,2491.7,0.9284]
[1751330729457,0.80243,2491.8,2491.7,0.9284]
[1751330730252,25.38543,2491.8,2491.7,0.9284]
[1751330730553,27.66137335,2491.8,2491.7,0.9284]
[1751330731360,0.80243,2491.8,2491.7,2.8284]
[1751330731562,2.27594335,2492.1,2491.7,2.8284]
[1751330731563,3.07834335,2491.9,2491.7,1.73084]
[1751330731860,3.07834335,2491.9,2491.8,3.2078]
[1751330732360,2.27594335,2491.9,2491.8,4.95023]
[1751330732556,3.07834335,2491.9,2491.8,4.95023]
[1751330732754,2.27594335,2491.9,2491.8,0.80243]
[1751330733156,2.27594335,2491.9,2491.8,2.83243]
[1751330733357,2.27594335,2491.9,2491.8,6.04023]
[1751330733551,3.07834335,2491.9,2491.8,6.03620974]
[1751330734360,2.27594335,2491.9,2491.8,6.03620974]
[1751330734659,5.21307,2492.9,2491.8,12.51374335]
[1751330734961,0.80216,2492.7,2492.6,0.80216]
[1751330735557,0.80217,2492.6,2492.5,0.80218]
[1751330735954,3.07810335,2492.7,2492.6,0.80216]
[1751330736155,0.8022,2492.6,2492.5,0.8022]
[1751330736355,3.07814335,2492.6,2492.5,2.8522]
[1751330736560,0.8022,2492.5,2492.4,3.2078]
[1751330736756,0.8023,2492.2,2492.1,3.2078]
[1751330736960,0.8023,2492.2,2492.1,6.15013]
[1751330736961,2.27594335,2492.2,2492.1,6.15013]
[1751330737156,0.80228,2492.3,2492.2,0.8023]
[1751330737458,2.27594335,2492.4,2492.3,0.80227]
[1751330737662,3.07817335,2492.4,2492.3,2.91227]
[1751330737855,3.07817335,2492.4,2492.3,0.80227]
[1751330738051,0.80222,2492.5,2492.4,0.80223]
[1751330738259,0.80222,2492.5,2492.4,6.98943]
[1751330738460,0.80222,2492.5,2492.4,6.63943]
[1751330738761,3.2078,2493.2,2492.5,2.00551]
[1751330738956,2.27594335,2493.4,2493.1,0.802]
[1751330739157,2.27594335,2493.4,2493.1,4.942]
[1751330739356,3.07787335,2493.4,2493.1,4.942]
[1751330739558,2.27594335,2493.2,2493.0,4.00983]
[1751330739758,2.27594335,2493.2,2493.1,0.80201]
[1751330740161,4.44096335,2493.4,2493.3,0.80195]
[1751330740361,4.44096335,2493.4,2493.0,3.2078]
[1751330740362,3.63904335,2493.4,2493.0,3.2078]
[1751330740557,3.07790335,2493.3,2493.2,0.80198]
[1751330741166,2.27594335,2493.3,2493.0,3.2078]
[1751330741465,3.07790335,2493.3,2493.1,0.802]
[1751330741664,0.80198,2493.2,2493.1,0.802]
[1751330742367,0.80198,2493.2,2493.0,4.00982]
[1751330742567,0.80198,2493.2,2493.0,7.53982]
[1751330742960,2.27594335,2493.1,2492.8,0.9494]
[1751330743160,3.07801335,2492.9,2492.8,0.9494]
[1751330743666,0.80211,2492.8,2492.7,3.2078]
[1751330744167,3.07805335,2492.8,2492.7,4.00994]
[1751330744368,3.07805335,2492.8,2492.7,3.2078]
[1751330744563,3.07805335,2492.8,2492.7,4.00994]
[1751330744958,0.80211,2492.8,2492.7,4.00994]
[1751330745160,3.07804335,2492.9,2492.8,0.8021]
[1751330745360,0.80211,2492.8,2492.7,4.00992]
[1751330745558,3.07803335,2492.9,2492.8,0.80211]
[1751330745868,2.94135,2493.1,2492.9,0.80207]
[1751330745869,0.80205,2493.0,2492.9,0.80207]
[1751330746069,0.80205,2493.0,2492.9,2.62207]
[1751330746270,0.80207,2492.9,2492.8,0.80208]
[1751330746469,0.80207,2492.9,2492.8,6.26208]
[1751330746870,0.80207,2493.0,2492.9,0.80207]
[1751330747070,0.80207,2493.0,2492.9,2.99207]
[1751330747266,3.07797335,2493.1,2493.0,0.80204]
[1751330747573,0.80204,2493.0,2492.9,0.80204]
[1751330747971,0.80209,2492.9,2492.8,0.80208]
[1751330748265,0.80209,2492.9,2492.8,3.84208]
[1751330749772,0.80209,2492.9,2492.8,3.04]
[1751330750271,0.80209,2492.9,2492.8,3.84211]
[1751330750472,0.80211,2492.8,2492.7,4.00992]
[1751330750672,0.80211,2492.8,2492.7,7.94992]
[1751330750873,0.80211,2492.8,2492.7,3.2078]
[1751330751074,0.80211,2492.8,2492.7,4.00994]
[1751330751374,0.80211,2492.8,2492.7,6.29994]
[1751330752872,0.80211,2492.8,2492.7,5.4978]
[1751330753071,0.80211,2492.8,2492.7,6.29994]
[1751330753463,0.80211,2492.8,2492.7,4.00994]
[1751330753663,0.80211,2492.8,2492.7,5.88994]
[1751330754769,0.80211,2492.8,2492.7,4.8978]
[1751330754972,0.80211,2492.8,2492.7,5.69994]
[1751330755969,3.07805335,2492.8,2492.7,3.2078]
[1751330756169,0.80228,2492.3,2492.2,3.2078]
[1751330756472,3.07822335,2492.3,2492.2,6.5297]
[1751330757877,0.80236,2492.0,2491.9,14.6218]
[1751330758080,0.80236,2492.0,2491.9,20.2418]
[1751330758081,3.07830335,2492.0,2491.9,20.2418]
[1751330758972,3.07830335,2492.0,2491.9,21.0442]
[1751330759378,0.80236,2492.0,2491.9,21.0442]
[1751330760273,0.80235,2492.1,2491.9,20.2418]
[1751330760478,0.80236,2492.0,2491.9,20.2418]
[1751330760672,0.80234,2492.1,2491.9,20.2418]
[1751330760868,6.542,2492.5,2492.2,0.80229]
[1751330761070,4.01003,2492.5,2492.2,3.44]
[1751330761270,4.01003,2492.5,2492.4,0.80223]
[1751330761479,0.80223,2492.4,2492.3,3.3248]
[1751330761777,0.80223,2492.4,2492.3,1.0023]
[1751330761778,3.07817335,2492.4,2492.3,1.0023]
[1751330761971,3.07817335,2492.4,2492.3,3.1123]
[1751330762572,0.80223,2492.4,2492.3,3.91457]
[1751330763175,4.01002,2492.5,2492.4,0.80223]
[1751330763680,4.01002,2492.5,2492.3,1.80454]
[1751330763871,3.07817335,2492.4,2492.3,1.0023]
[1751330764073,3.07817335,2492.4,2492.3,3.2623]
[1751330764380,3.07817335,2492.4,2492.3,4.06457]
[1751330764976,3.18541843,2493.0,2492.4,0.80223]
[1751330765176,3.18541843,2493.2,2493.1,0.80201]
[1751330765577,3.18541843,2493.2,2493.1,2.51201]
[1751330765774,3.18541843,2493.2,2493.1,0.80201]
[1751330765979,6.39321843,2493.3,2493.2,0.80198]
[1751330766280,3.2078,2493.3,2493.2,2.50198]